fUST/lending_fUST_20250630
["ID","MTS","AMOUNT","RATE_DAILY","PERIOD"]
[368670560,1751289040661,-155.97576151,0.00018544,2]
[368670561,1751289040671,-151.0,0.00018544,2]
[368670562,1751289040681,-151.0,0.00018544,2]
[368670563,1751289040690,-151.0,0.00018544,2]
[368670564,1751289040700,-151.0,0.00018544,2]
[368670565,1751289040709,-151.0,0.00018544,2]
[368670566,1751289040718,-151.0,0.00018544,2]
[368670567,1751289040727,-151.0,0.00018544,2]
[368670568,1751289040737,-500.0,0.00018544,2]
[368670569,1751289040746,-151.0,0.00018544,2]
[368670570,1751289040756,-500.0,0.00018544,2]
[368670571,1751289040764,-151.05430479,0.00018544,2]
[368670572,1751289040774,-226.70027493,0.00018544,2]
[368670573,1751289040783,-271.93193565,0.00018544,2]
[368670574,1751289040792,-151.25977877,0.00018544,2]
[368670575,1751289040802,-151.0,0.00018544,2]
[368670576,1751289040812,-151.0,0.00018544,2]
[368670577,1751289040823,-151.0,0.00018544,2]
[368670578,1751289040832,-151.0,0.00018544,2]
[368670579,1751289040842,-151.07594428,0.00018544,2]
[368670580,1751289040853,-151.0,0.00018544,2]
[368670581,1751289040863,-151.0,0.00018544,2]
[368670582,1751289040873,-151.0,0.00018544,2]
[368670583,1751289040882,-151.0,0.00018571,2]
[368670584,1751289040892,-557.0,0.00018571,2]
[368670585,1751289040901,-151.0,0.00018571,2]
[368670586,1751289040910,-151.0,0.00018571,2]
[368670587,1751289040920,-500.0,0.00018571,2]
[368670588,1751289040930,-151.0,0.00018571,2]
[368670589,1751289040939,-500.0,0.00018571,2]
[368670590,1751289040948,-151.0,0.00018571,2]
[368670591,1751289040958,-151.005927,0.00018571,2]
[368670592,1751289040968,-151.0,0.00018571,2]
[368670593,1751289040977,-833.0,0.00018571,2]
[368670594,1751289040987,-1621.0,0.00018571,2]
[368670595,1751289040996,-151.0,0.00018571,2]
[368670596,1751289041006,-151.0,0.00018571,2]
[368670597,1751289041016,-151.0,0.00018571,2]
[368670598,1751289041025,-151.0,0.00018571,2]
[368670599,1751289041035,-152.27517289,0.00018571,2]
[368670600,1751289041044,-151.0,0.00018571,2]
[368670601,1751289041054,-237.94600676,0.00018571,2]
[368670602,1751289041064,-500.0,0.00018571,2]
[368670603,1751289041073,-151.0,0.00018571,2]
[368670604,1751289041082,-500.0,0.00018571,2]
[368670605,1751289041091,-155.88843985,0.00018571,2]
[368670606,1751289041101,-245.0,0.00018571,2]
[368670607,1751289041110,-151.0,0.00018599,2]
[368670608,1751289041119,-151.0,0.00018599,2]
[368670609,1751289041129,-500.0,0.00018599,2]
[368670610,1751289041140,-151.0,0.00018599,2]
[368670611,1751289041152,-303.67121945,0.00018599,2]
[368670612,1751289041163,-193.9658982,0.00018599,2]
[368670613,1751289041172,-833.0,0.00018599,2]
[368670614,1751289041181,-1621.0,0.00018599,2]
[368670615,1751289041190,-151.0,0.00018599,2]
[368670616,1751289041201,-454.8883299,0.00018599,2]
[368670617,1751289041210,-359.29819206,0.00018599,2]
[368670618,1751289041219,-151.0,0.00018626,2]
[368670619,1751289041230,-484.49582104,0.00018626,2]
[368670620,1751289041240,-198.50873442,0.00018626,2]
[368670621,1751289041249,-833.0,0.00018626,2]
[368670622,1751289041258,-1621.0,0.00018626,2]
[368670623,1751289041268,-833.0,0.00018654,2]
[368670624,1751289041277,-1621.0,0.00018654,2]
[368670625,1751289041286,-195.08529795,0.0001866,2]
[368670626,1751289041296,-833.0,0.00018681,2]
[368670627,1751289041305,-1621.0,0.00018681,2]
[368670628,1751289041315,-833.0,0.00018708,2]
[368670629,1751289041324,-1621.0,0.00018708,2]
[368670630,1751289041333,-833.0,0.00018736,2]
[368670631,1751289041344,-1621.0,0.00018736,2]
[368670632,1751289041353,-206.93,0.00018751,3]
[368670633,1751289041362,-206.93,0.00018751,3]
[368670634,1751289041371,-500.0,0.00018759,2]
[368670635,1751289041380,-460.0,0.00018759,2]
[368670636,1751289041390,-460.0,0.00018759,2]
[368670637,1751289041399,-918.71,0.00018759,2]
[368670638,1751289041408,-460.0,0.00018759,2]
[368670639,1751289041417,-437.13151554,0.0001876,2]
[368670640,1751289041427,-460.0,0.0001876,2]
[368670641,1751289041437,-460.0,0.0001876,2]
[368670642,1751289041447,-460.0,0.0001876,2]
[368670643,1751289041457,-877.44,0.0001876,2]
[368670644,1751289041466,-460.0,0.0001876,2]
[368670645,1751289041475,-460.0,0.0001876,2]
[368670646,1751289041484,-460.0,0.0001876,2]
[368670647,1751289041494,-1350.45,0.0001876,2]
[368670648,1751289041503,-460.0,0.0001876,2]
[368670649,1751289041512,-460.0,0.0001876,2]
[368670650,1751289041521,-1325.04,0.0001876,2]
[368670651,1751289041530,-460.0,0.0001876,2]
[368670652,1751289041540,-460.0,0.0001876,2]
[368670653,1751289041549,-460.0,0.0001876,2]
[368670654,1751289041558,-460.0,0.0001876,2]
[368670655,1751289041567,-460.0,0.0001876,2]
[368670656,1751289041576,-548.55,0.0001876,2]
[368670657,1751289041585,-1353.21,0.0001876,2]
[368670658,1751289041594,-460.0,0.0001876,2]
[368670659,1751289041604,-1904.62,0.0001876,2]
[368670660,1751289041613,-460.0,0.0001876,2]
[368670661,1751289041623,-460.0,0.0001876,2]
[368670662,1751289041632,-460.0,0.0001876,2]
[368670663,1751289041642,-1940.45,0.0001876,2]
[368670664,1751289041651,-500.0,0.0001876,2]
[368670665,1751289041660,-1573.38,0.0001876,2]
[368670666,1751289041670,-460.0,0.0001876,2]
[368670667,1751289041679,-851.94,0.0001876,2]
[368670668,1751289041689,-460.0,0.0001876,2]
[368670669,1751289041698,-460.0,0.0001876,2]
[368670670,1751289041707,-460.0,0.0001876,2]
[368670671,1751289041717,-460.0,0.0001876,2]
[368670672,1751289041727,-460.0,0.0001876,2]
[368670673,1751289041736,-460.0,0.0001876,2]
[368670674,1751289041745,-251.86662136,0.0001876,2]
[368670675,1751289041754,-460.0,0.0001876,2]
[368670676,1751289041765,-460.0,0.0001876,2]
[368670677,1751289041774,-460.0,0.0001876,2]
[368670678,1751289041783,-497.4,0.0001876,2]
[368670679,1751289041792,-585.62170476,0.0001876,2]
[368670680,1751289041801,-460.0,0.0001876,2]
[368670681,1751289041811,-460.0,0.00018761,2]
[368670682,1751289041821,-460.0,0.00018761,2]
[368670683,1751289041942,-460.0,0.00018761,2]
[368670684,1751289041953,-460.0,0.00018761,2]
[368670685,1751289041963,-460.0,0.00018761,2]
[368670686,1751289041976,-460.0,0.00018761,2]
[368670687,1751289041987,-434.43435421,0.00018761,2]
[368670688,1751289041997,-460.0,0.00018761,2]
[368670689,1751289042007,-460.0,0.00018761,2]
[368670690,1751289042016,-460.0,0.00018761,2]
[368670691,1751289042026,-460.0,0.00018761,2]
[368670692,1751289042035,-460.0,0.00018761,2]
[368670693,1751289042045,-460.0,0.00018761,2]
[368670694,1751289042054,-460.0,0.00018761,2]
[368670695,1751289042064,-460.0,0.00018761,2]
[368670696,1751289042073,-460.0,0.00018761,2]
[368670697,1751289042082,-460.0,0.00018761,2]
[368670698,1751289042092,-460.0,0.00018761,2]
[368670699,1751289042101,-460.0,0.00018761,2]
[368670700,1751289042110,-583.49,0.00018761,2]
[368670701,1751289042120,-460.0,0.00018761,2]
[368670702,1751289042129,-312.83649756,0.00018761,2]
[368670703,1751289042138,-460.0,0.00018761,2]
[368670704,1751289042147,-460.0,0.00018761,2]
[368670705,1751289042161,-460.0,0.00018761,2]
[368670706,1751289042170,-460.0,0.00018761,2]
[368670707,1751289042179,-460.0,0.00018761,2]
[368670708,1751289042188,-460.0,0.00018761,2]
[368670709,1751289042197,-460.0,0.00018761,2]
[368670710,1751289042207,-501.27,0.00018761,2]
[368670711,1751289042216,-460.0,0.00018761,2]
[368670712,1751289042227,-460.0,0.00018761,2]
[368670713,1751289042236,-460.0,0.00018761,2]
[368670714,1751289042245,-460.0,0.00018761,2]
[368670715,1751289042254,-167.8195284,0.00018761,2]
[368670716,1751289042264,-863.08,0.00018761,2]
[368670717,1751289042273,-460.0,0.00018761,2]
[368670718,1751289042283,-596.43,0.00018761,2]
[368670719,1751289042292,-460.0,0.00018761,2]
[368670720,1751289042302,-460.0,0.00018761,2]
[368670721,1751289042311,-213.87,0.00018761,2]
[368670722,1751289042321,-460.0,0.00018761,2]
[368670723,1751289042331,-460.0,0.00018761,2]
[368670724,1751289042340,-460.0,0.00018761,2]
[368670725,1751289042349,-460.0,0.00018761,2]
[368670726,1751289042359,-460.0,0.00018761,2]
[368670727,1751289042370,-1440.92,0.00018761,2]
[368670728,1751289042379,-460.0,0.00018761,2]
[368670729,1751289042388,-460.0,0.00018761,2]
[368670730,1751289042398,-460.0,0.00018761,2]
[368670732,1751289042407,-503.1,0.00018761,2]
[368670734,1751289042417,-929.77,0.00018761,2]
[368670736,1751289042426,-2572.33,0.00018761,2]
[368670737,1751289042436,-460.0,0.00018761,2]
[368670739,1751289042445,-460.0,0.00018761,2]
[368670742,1751289042455,-599.87652576,0.00018762,2]
[368670744,1751289042464,-460.0,0.00018762,2]
[368670746,1751289042474,-460.0,0.00018762,2]
[368670748,1751289042483,-500.0,0.00018762,2]
[368670750,1751289042492,-500.0,0.00018762,2]
[368670752,1751289042502,-460.0,0.00018762,2]
[368670754,1751289042512,-2480.35,0.00018762,2]
[368670756,1751289042522,-460.0,0.00018762,2]
[368670758,1751289042532,-460.0,0.00018762,2]
[368670759,1751289042542,-910.79,0.00018762,2]
[368670760,1751289042552,-460.0,0.00018762,2]
[368670762,1751289042561,-460.0,0.00018762,2]
[368670764,1751289042571,-460.0,0.00018763,2]
[368670766,1751289042580,-460.0,0.00018763,2]
[368670768,1751289042590,-460.0,0.00018763,2]
[368670769,1751289042599,-833.0,0.00018763,2]
[368670770,1751289042608,-1621.0,0.00018763,2]
[368670771,1751289042617,-460.0,0.00018764,2]
[368670772,1751289042626,-460.0,0.00018764,2]
[368670773,1751289042636,-460.0,0.00018764,2]
[368670774,1751289042646,-460.0,0.00018764,2]
[368670775,1751289042655,-338.0502782,0.00018764,2]
[368670776,1751289042664,-500.0,0.00018764,2]
[368670777,1751289042673,-607.38072682,0.00018764,2]
[368670778,1751289042682,-460.0,0.00018764,2]
[368670779,1751289042692,-833.0,0.00018791,2]
[368670780,1751289042702,-1621.0,0.00018791,2]
[368670781,1751289042712,-500.0,0.00018796,2]
[368670782,1751289042722,-833.0,0.00018818,2]
[368670783,1751289042731,-1621.0,0.00018818,2]
[368670784,1751289042740,-195.08529794,0.00018831,2]
[368670785,1751289042749,-168.0,0.00018839,2]
[368670786,1751289042759,-833.0,0.00018845,2]
[368670787,1751289042768,-1621.0,0.00018845,2]
[368670788,1751289042778,-833.0,0.00018873,2]
[368670789,1751289042787,-1621.0,0.00018873,2]
[368670790,1751289042796,-500.0,0.00018899,2]
[368670791,1751289042805,-428.6629611,0.000189,2]
[368670792,1751289042815,-200.0,0.000189,3]
[368670793,1751289042824,-1517.82379414,0.000189,2]
[368670794,1751289042833,-163.0,0.000189,4]
[368670795,1751289042843,-4818.7019583,0.000189,2]
[368670796,1751289042853,-833.0,0.000189,2]
[368670797,1751289042862,-1621.0,0.000189,2]
[368670798,1751289042872,-15011.85133966,0.00018908,2]
[368670800,1751289042881,-833.0,0.00018928,2]
[368670801,1751289042891,-1621.0,0.00018928,2]
[368670802,1751289042900,-833.0,0.00018955,2]
[368670804,1751289042909,-1621.0,0.00018955,2]
[368670806,1751289042918,-833.0,0.00018982,2]
[368670808,1751289042927,-1621.0,0.00018982,2]
[368670810,1751289042938,-151.0,0.00019,2]
[368670812,1751289042947,-500.0,0.00019001,2]
[368670814,1751289042956,-500.0,0.00019001,2]
[368670816,1751289042965,-500.0,0.00019001,2]
[368670818,1751289042975,-500.0,0.00019001,2]
[368670820,1751289042984,-500.0,0.00019001,2]
[368670822,1751289042993,-500.0,0.00019001,2]
[368670824,1751289043002,-500.0,0.00019001,2]
[368670826,1751289043012,-500.0,0.00019001,2]
[368670828,1751289043022,-500.0,0.00019001,2]
[368670830,1751289043031,-352.50005828,0.00019001,2]
[368670832,1751289043040,-500.0,0.00019001,2]
[368670833,1751289043049,-500.0,0.00019001,2]
[368670835,1751289043059,-500.0,0.00019001,2]
[368670837,1751289043069,-500.0,0.00019001,2]
[368670839,1751289043078,-500.0,0.00019001,2]
[368670841,1751289043088,-500.0,0.00019001,2]
[368670843,1751289043098,-500.0,0.00019001,2]
[368670845,1751289043107,-500.0,0.00019001,2]
[368670847,1751289043117,-500.0,0.00019001,2]
[368670849,1751289043126,-337.65505577,0.00019001,2]
[368670851,1751289043135,-500.0,0.00019001,2]
[368670853,1751289043144,-300.0,0.00019001,2]
[368670855,1751289043157,-372.68737983,0.00019001,2]
[368670857,1751289043167,-500.0,0.00019001,2]
[368670860,1751289043176,-407.52095638,0.00019001,2]
[368670863,1751289043185,-600.0,0.00019001,2]
[368670866,1751289043195,-161.21475922,0.00019001,2]
[368670868,1751289043205,-600.0,0.00019001,2]
[368670870,1751289043215,-370000.0,0.00019002,2]
[368670873,1751289043225,-195.08529794,0.00019002,2]
[368670875,1751289043235,-833.0,0.0001901,2]
[368670877,1751289043245,-1621.0,0.0001901,2]
[368670879,1751289043254,-500.0,0.00019013,2]
[368670881,1751289043264,-159.319357,0.00019014,2]
[368670883,1751289043273,-159.319357,0.00019014,2]
[368670885,1751289043282,-159.319357,0.00019014,2]
[368670887,1751289043292,-159.319357,0.00019014,2]
[368670889,1751289043302,-159.319357,0.00019014,2]
[368670891,1751289043312,-318.5133496,0.00019014,2]
[368670893,1751289043321,-500.0,0.00019014,2]
[368670895,1751289043330,-500.0,0.00019014,2]
[368670897,1751289043340,-500.0,0.00019014,2]
[368670899,1751289043349,-500.0,0.00019014,2]
[368670901,1751289043358,-500.0,0.00019014,2]
[368670903,1751289043368,-500.0,0.00019014,2]
[368670905,1751289043377,-500.0,0.00019014,2]
[368670907,1751289043386,-500.0,0.00019014,2]
[368670908,1751289043395,-572.09392654,0.00019014,2]
[368670910,1751289043404,-168.0,0.00019015,2]
[368670912,1751289043414,-460.0,0.00019033,2]
[368670914,1751289043424,-460.0,0.00019033,2]
[368670916,1751289043433,-918.71,0.00019033,2]
[368670918,1751289043443,-460.0,0.00019033,2]
[368670920,1751289043451,-460.0,0.00019034,2]
[368670922,1751289043461,-460.0,0.00019034,2]
[368670924,1751289043471,-460.0,0.00019034,2]
[368670926,1751289043481,-877.44,0.00019034,2]
[368670928,1751289043490,-422.56773258,0.00019034,2]
[368670930,1751289043500,-460.0,0.00019034,2]
[368670933,1751289043510,-460.0,0.00019034,2]
[368670935,1751289043520,-1350.45,0.00019034,2]
[368670936,1751289043529,-460.0,0.00019034,2]
[368670938,1751289043538,-460.0,0.00019034,2]
[368670940,1751289043547,-1325.04,0.00019034,2]
[368670942,1751289043557,-460.0,0.00019034,2]
[368670944,1751289043566,-460.0,0.00019034,2]
[368670946,1751289043576,-417.86098524,0.00019034,2]
[368670948,1751289043585,-460.0,0.00019034,2]
[368670950,1751289043594,-460.0,0.00019034,2]
[368670951,1751289043604,-548.55,0.00019034,2]
[368670953,1751289043613,-1353.21,0.00019034,2]
[368670955,1751289043623,-460.0,0.00019034,2]
[368670957,1751289043632,-1904.62,0.00019034,2]
[368670959,1751289043642,-460.0,0.00019034,2]
[368670961,1751289043652,-460.0,0.00019034,2]
[368670963,1751289043661,-460.0,0.00019034,2]
[368670965,1751289043672,-1940.45,0.00019034,2]
[368670967,1751289043681,-1573.38,0.00019034,2]
[368670969,1751289043691,-460.0,0.00019034,2]
[368670971,1751289043701,-851.94,0.00019034,2]
[368670973,1751289043710,-460.0,0.00019034,2]
[368670975,1751289043719,-460.0,0.00019034,2]
[368670977,1751289043728,-460.0,0.00019034,2]
[368670979,1751289043737,-460.0,0.00019034,2]
[368670981,1751289043746,-460.0,0.00019034,2]
[368670983,1751289043755,-460.0,0.00019034,2]
[368670985,1751289043765,-460.0,0.00019034,2]
[368670987,1751289043775,-460.0,0.00019034,2]
[368670989,1751289043784,-497.4,0.00019034,2]
[368670991,1751289043793,-460.0,0.00019034,2]
[368670993,1751289043802,-460.0,0.00019035,2]
[368670995,1751289043812,-504.18774716,0.00019035,2]
[368670997,1751289043821,-460.0,0.00019035,2]
[368670999,1751289043830,-374.37674352,0.00019035,2]
[368671001,1751289043839,-460.0,0.00019035,2]
[368671003,1751289043849,-460.0,0.00019035,2]
[368671004,1751289043858,-460.0,0.00019035,2]
[368671006,1751289043867,-460.0,0.00019035,2]
[368671008,1751289043876,-460.0,0.00019035,2]
[368671010,1751289043886,-460.0,0.00019035,2]
[368671012,1751289043895,-460.0,0.00019035,2]
[368671014,1751289043904,-460.0,0.00019035,2]
[368671016,1751289043913,-460.0,0.00019035,2]
[368671018,1751289043923,-460.0,0.00019035,2]
[368671020,1751289043932,-460.0,0.00019035,2]
[368671022,1751289043941,-460.0,0.00019035,2]
[368671024,1751289043950,-460.0,0.00019035,2]
[368671026,1751289043960,-460.0,0.00019035,2]
[368671028,1751289043968,-460.0,0.00019035,2]
[368671030,1751289043978,-460.0,0.00019035,2]
[368671032,1751289043987,-460.0,0.00019035,2]
[368671034,1751289043996,-460.0,0.00019035,2]
[368671036,1751289044005,-460.0,0.00019035,2]
[368671038,1751289044014,-501.27,0.00019035,2]
[368671040,1751289044024,-460.0,0.00019035,2]
[368671042,1751289044033,-460.0,0.00019035,2]
[368671044,1751289044043,-460.0,0.00019035,2]
[368671046,1751289044052,-460.0,0.00019035,2]
[368671048,1751289044061,-863.08,0.00019035,2]
[368671050,1751289044070,-460.0,0.00019035,2]
[368671052,1751289044079,-596.43,0.00019035,2]
[368671054,1751289044088,-460.0,0.00019035,2]
[368671056,1751289044097,-460.0,0.00019035,2]
[368671058,1751289044107,-460.0,0.00019035,2]
[368671060,1751289044116,-460.0,0.00019035,2]
[368671062,1751289044125,-460.0,0.00019035,2]
[368671064,1751289044134,-460.0,0.00019035,2]
[368671066,1751289044143,-460.0,0.00019035,2]
[368671068,1751289044154,-1440.92,0.00019035,2]
[368671070,1751289044163,-460.0,0.00019035,2]
[368671072,1751289044173,-460.0,0.00019035,2]
[368671074,1751289044182,-460.0,0.00019035,2]
[368671076,1751289044191,-503.1,0.00019035,2]
[368671078,1751289044200,-929.77,0.00019035,2]
[368671080,1751289044209,-2572.33,0.00019035,2]
[368671082,1751289044219,-460.0,0.00019035,2]
[368671084,1751289044229,-460.0,0.00019035,2]
[368671086,1751289044238,-460.0,0.00019036,2]
[368671088,1751289044248,-460.0,0.00019036,2]
[368671090,1751289044257,-2480.35,0.00019036,2]
[368671092,1751289044266,-460.0,0.00019036,2]
[368671094,1751289044275,-460.0,0.00019036,2]
[368671096,1751289044285,-910.79,0.00019036,2]
[368671098,1751289044294,-460.0,0.00019036,2]
[368671100,1751289044303,-460.0,0.00019036,2]
[368671102,1751289044312,-460.0,0.00019037,2]
[368671104,1751289044322,-460.0,0.00019037,2]
[368671106,1751289044331,-460.0,0.00019037,2]
[368671118,1751289044430,-833.0,0.00019037,2]
[368671120,1751289044452,-1621.0,0.00019037,2]
[368671122,1751289044462,-460.0,0.00019038,2]
[368671124,1751289044471,-460.0,0.00019038,2]
[368671126,1751289044481,-460.0,0.00019038,2]
[368671128,1751289044491,-460.0,0.00019038,2]
[368671130,1751289044500,-837.16779106,0.00019041,2]
[368671132,1751289044509,-160.0,0.00019041,2]
[368671134,1751289044518,-213.84631524,0.00019041,2]
[368671136,1751289044528,-160.0,0.00019041,2]
[368671138,1751289044537,-230.31346914,0.00019041,2]
[368671140,1751289044547,-160.0,0.00019041,2]
[368671142,1751289044556,-160.0,0.00019041,2]
[368671144,1751289044565,-214.99848635,0.00019041,2]
[368671146,1751289044576,-847.41730813,0.00019041,2]
[368671148,1751289044585,-12569.13231816,0.00019041,2]
[368671150,1751289044595,-160.0,0.00019045,2]
[368671152,1751289044604,-524.55407094,0.00019045,2]
[368671154,1751289044613,-160.0,0.00019045,2]
[368671156,1751289044624,-160.0,0.00019045,2]
[368671158,1751289044633,-160.0,0.00019045,2]
[368671160,1751289044643,-833.0,0.00019065,2]
[368671162,1751289044654,-1621.0,0.00019065,2]
[368671164,1751289044663,-4818.70195814,0.00019072,2]
[368671166,1751289044673,-184.44062151,0.00019073,2]
[368671168,1751289044682,-500.97448561,0.00019073,2]
[368671170,1751289044691,-500.0,0.00019073,2]
[368671172,1751289044702,-491.29844678,0.00019073,2]
[368671174,1751289044711,-500.0,0.00019073,2]
[368671176,1751289044721,-500.0,0.00019073,2]
[368671178,1751289044730,-833.0,0.00019092,2]
[368671180,1751289044739,-1621.0,0.00019092,2]
[368671182,1751289044749,-151.0,0.000191,2]
[368671184,1751289044758,-207.4,0.00019102,2]
[368671186,1751289044768,-690.642,0.00019102,2]
[368671188,1751289044777,-25000.0,0.00019102,2]
[368671190,1751289044787,-5000.0,0.00019102,2]
[368671192,1751289044798,-7274.8704112,0.00019102,2]
[368671194,1751289044807,-500.0,0.00019102,2]
[368671196,1751289044816,-500.0,0.00019102,2]
[368671198,1751289044825,-500.0,0.00019102,2]
[368671200,1751289044834,-500.0,0.00019102,2]
[368671202,1751289044844,-500.0,0.00019102,2]
[368671204,1751289044853,-500.0,0.00019102,2]
[368671206,1751289044863,-608.72523786,0.00019102,2]
[368671208,1751289044872,-500.0,0.00019102,2]
[368671210,1751289044881,-500.0,0.00019102,2]
[368671212,1751289044890,-500.0,0.00019102,2]
[368671214,1751289044899,-500.0,0.00019102,2]
[368671216,1751289044908,-500.0,0.00019102,2]
[368671218,1751289044918,-500.0,0.00019102,2]
[368671220,1751289044927,-500.0,0.00019102,2]
[368671222,1751289044936,-500.0,0.00019102,2]
[368671224,1751289044945,-500.0,0.00019102,2]
[368671226,1751289044955,-500.0,0.00019102,2]
[368671228,1751289044964,-500.0,0.00019102,2]
[368671230,1751289044973,-500.0,0.00019102,2]
[368671232,1751289044983,-500.0,0.00019102,2]
[368671234,1751289044993,-500.0,0.00019102,2]
[368671236,1751289045002,-500.0,0.00019102,2]
[368671238,1751289045012,-500.0,0.00019102,2]
[368671240,1751289045022,-500.0,0.00019102,2]
[368671243,1751289045031,-500.0,0.00019102,2]
[368671245,1751289045041,-500.0,0.00019102,2]
[368671247,1751289045050,-500.0,0.00019102,2]
[368671249,1751289045059,-500.0,0.00019102,2]
[368671250,1751289045069,-500.0,0.00019102,2]
[368671252,1751289045078,-500.0,0.00019102,2]
[368671254,1751289045087,-500.0,0.00019102,2]
[368671256,1751289045097,-500.0,0.00019102,2]
[368671258,1751289045106,-500.0,0.00019102,2]
[368671260,1751289045116,-500.0,0.00019102,2]
[368671262,1751289045125,-500.0,0.00019102,2]
[368671264,1751289045135,-151.0,0.00019102,2]
[368671266,1751289045144,-151.0,0.00019102,2]
[368671268,1751289045155,-151.0,0.00019102,2]
[368671270,1751289045165,-151.0,0.00019102,2]
[368671272,1751289045173,-151.0,0.00019102,2]
[368671274,1751289045182,-151.0,0.00019102,2]
[368671276,1751289045192,-151.0,0.00019102,2]
[368671278,1751289045201,-151.0,0.00019102,2]
[368671280,1751289045210,-151.0,0.00019102,2]
[368671282,1751289045220,-151.0,0.00019102,2]
[368671284,1751289045230,-151.0,0.00019102,2]
[368671286,1751289045239,-151.0,0.00019102,2]
[368671288,1751289045249,-151.0,0.00019102,2]
[368671290,1751289045258,-151.0,0.00019102,2]
[368671292,1751289045268,-151.0,0.00019102,2]
[368671294,1751289045277,-151.0,0.00019102,2]
[368671296,1751289045286,-151.0,0.00019102,2]
[368671298,1751289045295,-267.308168,0.00019102,2]
[368671300,1751289045305,-152.30005,0.00019102,2]
[368671302,1751289045314,-151.0,0.00019102,2]
[368671304,1751289045324,-151.0,0.00019102,2]
[368671306,1751289045333,-151.0,0.00019102,2]
[368671308,1751289045343,-151.0,0.00019102,2]
[368671310,1751289045352,-152.302486,0.00019102,2]
[368671312,1751289045361,-151.0,0.00019102,2]
[368671314,1751289045370,-151.0,0.00019102,2]
[368671316,1751289045379,-151.0,0.00019102,2]
[368671318,1751289045388,-151.0,0.00019102,2]
[368671320,1751289045400,-151.0,0.00019102,2]
[368671322,1751289045409,-151.0,0.00019102,2]
[368671324,1751289045418,-151.0,0.00019102,2]
[368671326,1751289045427,-151.0,0.00019102,2]
[368671328,1751289045436,-151.0,0.00019102,2]
[368671330,1751289045445,-151.0,0.00019102,2]
[368671332,1751289045455,-151.0,0.00019102,2]
[368671334,1751289045464,-151.0,0.00019102,2]
[368671336,1751289045475,-151.0,0.00019102,2]
[368671338,1751289045485,-151.0,0.00019102,2]
[368671340,1751289045494,-151.0,0.00019102,2]
[368671342,1751289045503,-151.0,0.00019102,2]
[368671344,1751289045514,-833.0,0.00019119,2]
[368671347,1751289045527,-1621.0,0.00019119,2]
[368671349,1751289045541,-833.0,0.00019147,2]
[368671352,1751289045555,-1621.0,0.00019147,2]
[368671354,1751289045568,-716.195754,0.00019157,2]
[368671356,1751289045578,-151.0,0.00019157,2]
[368671358,1751289045590,-500.0,0.00019164,2]
[368671361,1751289045603,-841.0,0.00019174,2]
[368671363,1751289045615,-1638.0,0.00019174,2]
[368671366,1751289045628,-500.0,0.00019178,2]
[368671368,1751289045642,-234.47094767,0.00019178,2]